{"text_format":"1","workbook":"xlsx","n_sheets":5,"sheets":["Реестр","Основные параметры","ШАБЛОН","Акт № 10 в","Акт № 5"],"not_rendered":{"charts":0,"images":0,"macros":1,"external_links":0,"defined_names":16,"comments":1,"pivot_tables":0},"unopened":[],"bounds":{"document_bytes":16777216,"sheet_cells":100000,"rows_first":2000,"rows_last":500,"rows_between":2000,"halvings":0,"cell_chars":16384,"cell_head_chars":4096},"cells_cut":0,"cells_raw":0,"read":"whole","date_system":"1900"}

{"sheet":"Реестр","index":0,"n_rows":203,"n_cols":5,"rows_kept":203,"cut":false,"hidden":false,"merged":[[1,0,1,4],[0,0,0,4]]}
[]
[{"$f":"'Основные параметры'!A33:G33","v":"Реконструкция автомобильной дороги \"\""}]
["№ п/п","вид работ","№ акта","дата работ","дата акта"]
[1,"Временая дорога ПК00+20-2+40, ПК4+40-20+30; Ремонт лакокрасочного покрытия наружных поверхностей крышки турбины 18Г на первый слой.  ","10 в","20.05.2016 - 24.06.2016","2017-07-30"]
[2,"Основная дорога ПК0+00-ПК20+30; Ремонт лакокрасочного покрытия внутренних поверхностей крышки турбины 18Г на первый слой.  ","5","25.06.2016 - 29.06.2016","2016-06-29"]
[3]
[4]
[5]
[6]
[7]
[8]
[9]
[10]
[11]
[12]
[13]
[14]
[15]
[16]
[17]
[18]
[19]
[20]
[21]
[22]
[23]
[24]
[25]
[26]
[27]
[28]
[29]
[30]
[31]
[32]
[33]
[34]
[35]
[36]
[37]
[38]
[39]
[40]
[41]
[42]
[43]
[44]
[45]
[46]
[47]
[48]
[49]
[50]
[51]
[52]
[53]
[54]
[55]
[56]
[57]
[58]
[59]
[60]
[61]
[62]
[63]
[64]
[65]
[66]
[67]
[68]
[69]
[70]
[71]
[72]
[73]
[74]
[75]
[76]
[77]
[78]
[79]
[80]
[81]
[82]
[83]
[84]
[85]
[86]
[87]
[88]
[89]
[90]
[91]
[92]
[93]
[94]
[95]
[96]
[97]
[98]
[99]
[100]
[101]
[102]
[103]
[104]
[105]
[106]
[107]
[108]
[109]
[110]
[111]
[112]
[113]
[114]
[115]
[116]
[117]
[118]
[119]
[120]
[121]
[122]
[123]
[124]
[125]
[126]
[127]
[128]
[129]
[130]
[131]
[132]
[133]
[134]
[135]
[136]
[137]
[138]
[139]
[140]
[141]
[142]
[143]
[144]
[145]
[146]
[147]
[148]
[149]
[150]
[151]
[152]
[153]
[154]
[155]
[156]
[157]
[158]
[159]
[160]
[161]
[162]
[163]
[164]
[165]
[166]
[167]
[168]
[169]
[170]
[171]
[172]
[173]
[174]
[175]
[176]
[177]
[178]
[179]
[180]
[181]
[182]
[183]
[184]
[185]
[186]
[187]
[188]
[189]
[190]
[191]
[192]
[193]
[194]
[195]
[196]
[197]
[198]
[199]
[200]

{"sheet":"Основные параметры","index":1,"n_rows":253,"n_cols":16,"rows_kept":253,"cut":false,"hidden":false,"merged":[[27,0,27,6],[27,7,27,8],[28,7,28,8],[51,0,51,6],[32,0,32,6],[42,0,42,6],[49,0,49,6],[50,0,50,6],[33,0,33,6],[34,0,34,6],[35,0,35,6],[36,0,36,6],[37,0,37,6],[38,0,38,6],[39,0,39,6],[40,0,40,6],[29,0,29,6],[29,7,29,8],[41,0,41,6],[46,0,46,6],[47,0,47,6],[48,0,48,6],[43,0,43,6],[31,0,31,6],[10,0,10,7],[12,0,12,7],[21,0,21,6],[22,0,22,6],[23,0,23,6],[24,0,24,6],[14,0,14,7],[28,0,28,6],[32,7,32,8],[31,7,31,8],[11,0,11,7],[15,1,15,7],[16,1,16,7],[7,0,7,7],[9,0,9,7],[4,0,4,7],[6,0,6,7],[8,0,8,7],[0,11,0,12],[0,14,0,15],[44,0,44,6],[45,0,45,6],[20,11,20,12],[20,14,20,15],[25,0,25,6],[20,7,20,8],[21,7,21,8],[22,7,22,8],[24,7,24,8],[23,7,23,8],[25,7,25,8],[20,0,20,6],[13,0,13,7],[30,0,30,6],[0,3,0,6],[5,8,5,9],[6,8,6,9],[4,8,4,9],[3,8,3,9],[1,0,1,7],[2,0,2,7],[3,0,3,7],[5,0,5,7],[19,1,19,7],[17,1,17,7],[18,1,18,7],[26,0,26,6],[26,7,26,8]]}
[null,null,null,"Не забудь разрешить выполнение макроса!!!!!!",null,null,null,null,{"$f":"IF(ISBLANK(J3),\" \",\" от \")","v":" от "},{"$f":"IF(ISBLANK(J2),\" \",\" по \")","v":" по "},null,"Фамилии  и должности отв. лиц исполнителя.",null,null,"Фамилии и должности отв. лиц заказчика."]
["Реконструкция автомобильной дороги \"\"",null,null,null,null,null,null,null,"Работы выполняются по","договору № 000",null,"Павлова Е.Д.","Инженер ПТО",null,"Симонов А.М.","Руководитель резидентной службы"]
["(объект капитального строительства)",null,null,null,null,null,null,null,"Дата подписания","00.00.2020",null,"Сидоров А.М.","Начальник участка",null,"Дмитриев  О.В.","Главный инженер проекта ООО \"\""]
["Областное казенное учреждение \" \" ОГРН 00000000000 внесена запись о создании юридического лица от 00.00.2017 г, ИНН 0000000000000000, 000000000000, г., ул. , тел. (0000) 00-00-00",null,null,null,null,null,null,null,"СП 34.13330.2012 Автомобильные дороги. Актуализированная редакция СНиП 2.02.02-85*",null,null,"Дмитриев  О.В.","Главный инженер проекта ООО \"\""]
["(застройщик или технический заказчик)",null,null,null,null,null,null,null,"(нормативная док. и правовые акты))"]
["Общество с ограниченной ответственностью \"\" ОГРН 0000000000000;  ИНН 00000000000000000000; 000000 г. , ул. М.Горького,д., помещение 000, тел. +7 (900) 000-00-00, свидетельство №0000.00-2011-000000000-С-000, выдано по решению НП саморегулируемой организации в строительстве \"\", протокол №00/0000 от 00.00.0000 г., ОГРН 00000000000000000 ИНН 00000000000000000",null,null,null,null,null,null,null,{"$f":"A12","v":"ООО \"\""}]
["(лицо, осуществляющее строительство)",null,null,null,null,null,null,null,"(исполнитель кратко)"]
["Общество с ограниченной ответственностью \"0-0\" Свидетельство №0000.00-00000-00000000000000000 от 00.00.0000., ИНН 00000000000 ОГРН 0000000000000000000, 000000, область , город , улица Ленина, д",null,null,null,null,null,null,null,"Дмитриев  О.В.","Главный инженер проекта ООО \"\""]
["(лицо, осуществляющее подготовку проектной документации)",null,null,null,null,null,null,null,"Фамилия И.О.","Должность"]
[{"$f":"A6","v":"Общество с ограниченной ответственностью \"\" ОГРН 0000000000000;  ИНН 00000000000000000000; 000000 г. , ул. М.Горького,д., помещение 000, тел. +7 (900) 000-00-00, свидетельство №0000.00-2011-000000000-С-000, выдано по решению НП саморегулируемой организации в строительстве \"\", протокол №00/0000 от 00.00.0000 г., ОГРН 00000000000000000 ИНН 00000000000000000"}]
["(лицо, осуществляющее строительство, выполнившее работы, подлежащие освидетельствованию)",null,null,null,null,null,null,null,"Фамилия И.О.","Должность"]
["ООО \"\""]
["(наименование организации (кратко) представителя лица, осуществляющего строительство по вопросам строительного контроля)",null,null,null,null,null,null,null,"Фамилия И.О.","Должность"]
["Иные лица, учавствующие в освидетельствовании:"]
["нет",null,null,null,null,null,null,null,"Фамилия И.О.","Должность"]
[1,"(дополнительные сведения)"]
[2,null,null,null,null,null,null,null,"Фамилия И.О.","Должность"]
[3]
[4,null,null,null,null,null,null,null,"Фамилия И.О.","Должность"]
[5]
["Представитель застройщика или заказчика (Фамилия И.О.)",null,null,null,null,null,null,"Реквизиты документа",null,"Должность"]
["Дмитриев  О.В.",null,null,null,null,null,null,null,null,{"$f":"VLOOKUP(A22,$O$2:$P$20,2,0)","v":"Главный инженер проекта ООО \"\""}]
["Представитель лица осуществляющего строительство (Фамилия И.О.)",null,null,null,null,null,null,"Реквизиты документа",null,"Должность"]
["Сидоров А.М.",null,null,null,null,null,null,null,null,{"$f":"VLOOKUP(A24,$L$2:$M$20,2,0)","v":"Начальник участка"}]
["Представитель лица осуществляющего строительство, по вопросам строительного контроля (Фамилия И.О.)",null,null,null,null,null,null,"Реквизиты документа",null,"Должность"]
["Павлова Е.Д.",null,null,null,null,null,null,null,null,{"$f":"VLOOKUP(A26,$L$2:$M$20,2,0)","v":"Инженер ПТО"}]
["Представитель лица, выполнившего работы (Фамилия И.О.)",null,null,null,null,null,null,"Реквизиты документа",null,"Должность"]
["Сидоров А.М.",null,null,null,null,null,null,null,null,{"$f":"VLOOKUP(A28,$L$2:$M$20,2,0)","v":"Начальник участка"}]
["Представитель лица, осуществляющего подготовку проектной документации (Фамилия И.О.)",null,null,null,null,null,null,"Реквизиты документа",null,"Должность"]
["Дмитриев  О.В.",null,null,null,null,null,null,null,null,{"$f":"VLOOKUP(A30,$L$2:$M$20,2,0)","v":"Главный инженер проекта ООО \"\""}]
["Основные сведения о предъявляемых к освидетельствованию работах",null,null,null,null,null,null,"Количество экз.",3]
["Объект капиталного строительства\n(в соответствии с договором)",null,null,null,null,null,null,"№ АКТА присвоенный",null,"Информация о проектной документации"]
[{"$f":"A2","v":"Реконструкция автомобильной дороги \"\""},null,null,null,null,null,null," ",null,"3-ПРД-ТКР2.1"]
[null,null,null,null,null,null,null,null,null,null,null,null,"Старший мастер Гидротехнического цеха Братского участка"]
[null,null,null,null,null,null,null,null,null,null,null,null,"Старший мастер Гидротехнического цеха Братского участка"]
[null,null,null,null,null,null,null,null,null,null,null,null,"Старший мастер Гидротехнического цеха Братского участка"]
[null,null,null,null,null,null,null,null,null,null,null,null,"Старший мастер Гидротехнического цеха Братского участка"]
[null,null,null,null,null,null,null,null,null,null,null,null,"Старший мастер Гидротехнического цеха Братского участка"]
[null,null,null,null,null,null,null,null,null,null,null,null,"Старший мастер Гидротехнического цеха Братского участка"]
[null,null,null,null,null,null,null,null,null,null,null,null,"Старший мастер Гидротехнического цеха Братского участка"]
[null,null,null,null,null,null,null,null,null,null,null,null,"Старший мастер Гидротехнического цеха Братского участка"]
[null,null,null,null,null,null,null,null,null,null,null,null,"Старший мастер Гидротехнического цеха Братского участка"]
[null,null,null,null,null,null,null,null,null,null,null,null,"Старший мастер Гидротехнического цеха Братского участка"]
[null,null,null,null,null,null,null,null,null,null,null,null,"Старший мастер Гидротехнического цеха Братского участка"]
[null,null,null,null,null,null,null,null,null,null,null,null,"Старший мастер Гидротехнического цеха Братского участка"]
[null,null,null,null,null,null,null,null,null,null,null,null,"Старший мастер Гидротехнического цеха Братского участка"]
[null,null,null,null,null,null,null,null,null,null,null,null,"Старший мастер Гидротехнического цеха Братского участка"]
[null,null,null,null,null,null,null,null,null,null,null,null,"Старший мастер Гидротехнического цеха Братского участка"]
[null,null,null,null,null,null,null,null,null,null,null,null,"Старший мастер Гидротехнического цеха Братского участка"]
[null,null,null,null,null,null,null,null,null,null,null,null,"Старший мастер Гидротехнического цеха Братского участка"]
[null,null,null,null,null,null,null,null,null,null,null,null,"Старший мастер Гидротехнического цеха Братского участка"]
[null,null,null,null,null,null,null,null,null,null,null,null,"Старший мастер Гидротехнического цеха Братского участка"]
["№ п/п","№ акта","Дата составления акта","Адрес работ","Предъявляемая к освидетельствованию работа\n(в соответствии с КС-2)","Разрешается производство \nследующих рабор","Примененные материалы","Приложения","Дата начала работ","Дата окончания работ","Информация о проектной документации"]
["10 в",{"$f":"IF(ISBLANK(E54),\" \",CONCATENATE($H$33,A54))","v":" 10 в"},"2017-07-30","Временая дорога ПК00+20-2+40, ПК4+40-20+30","Ремонт лакокрасочного покрытия наружных поверхностей крышки турбины 18Г на первый слой.","Ремонт лакокрасочного покрытия наружных поверхностей крышки турбины 18Г на второй слой.","Нефрас, ветошь, отвердитель, растворитель Р-4, шпатлевка ЭП 0010.","Исполнительная схема; ведомость объемов работ; Журнал плотноси земляного полотна; ведомость промеров высотных отметок; ведомость приемки земляного полотна;Журнал физико-механических свойств грунтов; акт пробного уплотнения","2016-05-20","2016-06-24","3-ПРД-ТКР2.1"]
[5," 5",{"$f":"IF(ISBLANK(J55),\" \",J55)","v":"2016-06-29"},"Основная дорога ПК0+00-ПК20+30","Ремонт лакокрасочного покрытия внутренних поверхностей крышки турбины 18Г на первый слой.","Ремонт лакокрасочного покрытия внутренних поверхностей крышки турбины 18Г на второй слой.","Нефрас, ветошь, отвердитель, растворитель Р-4, шпатлевка ЭП 0010.","Исполнительная схема; ведомость объемов работ; Паспорт на B25 №25, 26, 28 от 30.01.2019, №46 от 12.02.2019, №51, 52, 53, 55, 56, 62, 64 от 20.02.2019., №00 от 00.00.2020г. №25, 26, 28 от 30.01.2019, №46 от 12.02.2019, №51, 52, 53, 55, 56, 62, 64 от 20.02.2019., №00 от 00.00.2020г. ;Журнал плотноси земляного полотна; ведомость промеров высотных отметок; ведомость приемки земляного полотна;Журнал физико-механических свойств грунтов; акт пробного уплотнения","2016-06-25","2016-06-29","3-ПРД-ТКР2.1"]
[3," "," "]
[4," "," "]
[5," "," "]
[6," "," "]
[7," "," "]
[8," "," "]
[9," "," "]
[10," "," "]
[11," "," "]
[12," "," "]
[13," "," "]
[14," "," "]
[15," "," "]
[16," "," "]
[17," "," "]
[18," "," "]
[19," "," "]
[20," "," "]
[21," "," "]
[22," "," "]
[23," "," "]
[24," "," "]
[25," "," "]
[26," "," "]
[27," "," "]
[28," "," "]
[29," "," "]
[30," "," "]
[31," "," "]
[32," "," "]
[33,{"$f":"IF(ISBLANK(E86),\" \",CONCATENATE($H$33,A86))","v":" "}," "]
[34," ",{"$f":"IF(ISBLANK(J87),\" \",J87)","v":" "}]
[35," "," "]
[36," "," "]
[37," "," "]
[38," "," "]
[39," "," "]
[40," "," "]
[41," "," "]
[42," "," "]
[43," "," "]
[44," "," "]
[45," "," "]
[46," "," "]
[47," "," "]
[48," "," "]
[49," "," "]
[50," "," "]
[51," "," "]
[52," "," "]
[53," "," "]
[54," "," "]
[55," "," "]
[56," "," "]
[57," "," "]
[58," "," "]
[59," "," "]
[60," "," "]
[61," "," "]
[62," "," "]
[63," "," "]
[64," "," "]
[65,{"$f":"IF(ISBLANK(E118),\" \",CONCATENATE($H$33,A118))","v":" "}," "]
[66," ",{"$f":"IF(ISBLANK(J119),\" \",J119)","v":" "}]
[67," "," "]
[68," "," "]
[69," "," "]
[70," "," "]
[71," "," "]
[72," "," "]
[73," "," "]
[74," "," "]
[75," "," "]
[76," "," "]
[77," "," "]
[78," "," "]
[79," "," "]
[80," "," "]
[81," "," "]
[82," "," "]
[83," "," "]
[84," "," "]
[85," "," "]
[86," "," "]
[87," "," "]
[88," "," "]
[89," "," "]
[90," "," "]
[91," "," "]
[92," "," "]
[93," "," "]
[94," "," "]
[95," "," "]
[96," "," "]
[97,{"$f":"IF(ISBLANK(E150),\" \",CONCATENATE($H$33,A150))","v":" "}," "]
[98," ",{"$f":"IF(ISBLANK(J151),\" \",J151)","v":" "}]
[99," "," "]
[100," "," "]
[101," "," "]
[102," "," "]
[103," "," "]
[104," "," "]
[105," "," "]
[106," "," "]
[107," "," "]
[108," "," "]
[109," "," "]
[110," "," "]
[111," "," "]
[112," "," "]
[113," "," "]
[114," "," "]
[115," "," "]
[116," "," "]
[117," "," "]
[118," "," "]
[119," "," "]
[120," "," "]
[121," "," "]
[122," "," "]
[123," "," "]
[124," "," "]
[125," "," "]
[126," "," "]
[127," "," "]
[128," "," "]
[129,{"$f":"IF(ISBLANK(E182),\" \",CONCATENATE($H$33,A182))","v":" "}," "]
[130," ",{"$f":"IF(ISBLANK(J183),\" \",J183)","v":" "}]
[131," "," "]
[132," "," "]
[133," "," "]
[134," "," "]
[135," "," "]
[136," "," "]
[137," "," "]
[138," "," "]
[139," "," "]
[140," "," "]
[141," "," "]
[142," "," "]
[143," "," "]
[144," "," "]
[145," "," "]
[146," "," "]
[147," "," "]
[148," "," "]
[149," "," "]
[150," "," "]
[151," "," "]
[152," "," "]
[153," "," "]
[154," "," "]
[155," "," "]
[156," "," "]
[157," "," "]
[158," "," "]
[159," "," "]
[160," "," "]
[161,{"$f":"IF(ISBLANK(E214),\" \",CONCATENATE($H$33,A214))","v":" "}," "]
[162," ",{"$f":"IF(ISBLANK(J215),\" \",J215)","v":" "}]
[163," "," "]
[164," "," "]
[165," "," "]
[166," "," "]
[167," "," "]
[168," "," "]
[169," "," "]
[170," "," "]
[171," "," "]
[172," "," "]
[173," "," "]
[174," "," "]
[175," "," "]
[176," "," "]
[177," "," "]
[178," "," "]
[179," "," "]
[180," "," "]
[181," "," "]
[182," "," "]
[183," "," "]
[184," "," "]
[185," "," "]
[186," "," "]
[187," "," "]
[188," "," "]
[189," "," "]
[190," "," "]
[191," "," "]
[192," "," "]
[193,{"$f":"IF(ISBLANK(E246),\" \",CONCATENATE($H$33,A246))","v":" "}," "]
[194," ",{"$f":"IF(ISBLANK(J247),\" \",J247)","v":" "}]
[195," "," "]
[196," "," "]
[197," "," "]
[198," "," "]
[199," "," "]
[200," "," "]

{"sheet":"ШАБЛОН","index":2,"n_rows":132,"n_cols":36,"rows_kept":132,"cut":false,"hidden":false,"merged":[[34,0,34,18],[19,0,19,35],[29,0,29,35],[15,0,15,35],[16,0,16,35],[17,0,17,35],[76,0,76,35],[78,0,78,35],[79,0,79,35],[33,0,33,35],[51,0,51,35],[52,0,52,35],[53,0,53,35],[54,0,54,28],[55,0,55,35],[56,0,56,35],[57,0,57,35],[58,0,58,35],[74,0,74,35],[60,0,60,35],[61,0,61,35],[62,0,62,35],[63,0,63,12],[63,13,63,35],[80,1,80,35],[88,0,88,35],[18,0,18,21],[18,22,18,35],[34,19,34,35],[44,0,44,25],[44,26,44,35],[85,0,85,35],[84,0,84,35],[83,0,83,35],[82,0,82,35],[81,0,81,35],[59,0,59,23],[59,24,59,35],[69,0,69,35],[68,0,68,35],[67,0,67,35],[31,0,31,35],[23,0,23,35],[24,0,24,35],[25,1,25,2],[25,3,25,20],[25,22,25,23],[32,0,32,35],[11,0,11,35],[12,0,12,35],[13,0,13,35],[14,0,14,35],[7,0,7,35],[8,0,8,35],[0,0,0,13],[10,0,10,13],[30,0,30,35],[0,14,0,35],[1,0,1,35],[2,0,2,35],[3,0,3,35],[4,0,4,35],[5,0,5,35],[6,0,6,35],[9,0,9,35],[10,14,10,35],[20,0,20,35],[21,0,21,35],[22,0,22,35],[26,0,26,35],[27,0,27,21],[28,0,28,35],[97,1,97,17],[87,0,87,35],[50,0,50,35],[35,0,35,35],[36,0,36,35],[37,0,37,35],[38,0,38,10],[38,11,38,35],[39,0,39,35],[40,0,40,35],[41,0,41,35],[42,0,42,35],[43,0,43,35],[45,0,45,35],[46,0,46,35],[47,0,47,35],[48,0,48,35],[49,0,49,35],[86,0,86,35],[66,1,66,20],[66,21,66,35],[75,1,75,12],[75,13,75,35],[91,22,91,24],[64,13,64,35],[65,0,65,16],[72,17,72,35],[73,0,73,35],[109,0,109,1],[110,0,110,1],[100,0,100,8],[100,9,100,35],[90,1,90,3],[90,4,90,9],[90,11,90,12],[90,14,90,21],[90,22,90,24],[91,4,91,9],[91,11,91,12],[91,14,91,21],[108,0,108,1],[92,1,92,13],[92,14,92,35],[93,0,93,35],[94,0,94,35],[96,0,96,35],[97,18,97,35],[89,0,89,35],[103,2,103,35],[130,0,131,17],[130,18,130,35],[131,18,131,35],[111,0,111,1],[112,0,112,1],[113,0,113,1],[114,0,114,1],[115,0,115,1],[116,0,116,1],[119,0,119,1],[117,0,117,1],[118,0,118,1],[124,18,124,35],[125,0,127,17],[126,18,126,35],[127,18,127,35],[98,0,98,35],[77,0,77,35],[25,32,25,34],[25,25,25,30],[95,0,95,35],[128,0,129,17],[128,18,128,35],[129,18,129,35],[101,0,101,5],[101,6,101,8],[102,0,102,4],[120,0,122,17],[121,18,121,35],[122,18,122,35],[123,0,123,17],[123,18,123,35],[104,0,104,1],[105,0,105,1],[106,0,106,1],[107,0,107,1],[99,0,99,35],[70,0,70,35],[71,0,71,35],[72,1,72,16]]}
["Объект капитального строительства:"]
[]
["(наименование проектной документации, почтовый или строительный адрес объекта капитального строительства)"]
["Застройщик (технический заказчик, эксплуатирующая организация или региональный оператор)"]
[]
["(фамилия, имя, отчество, адрес места жительства, ОРГНИП, ИНН индивидуального предпринимателя, наименование, ОГРН, ИНН,"]
[]
["место нахождения юридического лица, телефон/факс, наименование, ОГРН, ИНН саморегулируемой организации, членом"]
[]
["которой является – для индивидуальных предпринимателей и юридических лиц)  "]
["Лицо, осуществляющее строительство:"]
[]
["(фамилия, имя, отчество, адрес места жительства, ОРГНИП, ИНН индивидуального предпринимателя, наименование, ОГРН, ИНН, место"]
[]
[" нахождения юридического лица, телефон/факс, наименование, ОГРН, ИНН саморегулируемой организации, членом которой является)"]
[]
[]
[]
["Лицо, осуществляющее подготовку проектной документации:"]
[]
["(фамилия, имя, отчество, адрес места жительства, ОРГНИП, ИНН индивидуального предпринимателя, наименование, ОГРН, ИНН, место"]
[]
["нахождения юридического лица, телефон/факс, наименование, ОГРН, ИНН саморегулируемой организации, членом которой является)"]
["Акт"]
["освидетельствования скрытых работ"]
["№",null,null,null,null,null,null,null,null,null,null,null,null,null,null,null,null,null,null,null,null,"\"",null,null,"\"",null,null,null,null,null,null,null,null,null,null,"г."]
[" Представитель   застройщика (технического заказчика, эксплуатирующей организации или "]
["регионального оператора) по вопросам строительного контроля:"]
[]
["(должность, фамилия, инициалы, идентификационный номер в национальном реестре специалистов в области строительства  "]
[]
["реквизиты распорядительного документа, подтверждающего полномочия, с указанием наименования, ОГРН, ИНН, места нахождения \n\n"]
[]
["юридического лица, фамилии, имени, отчества, адреса места жительства, ОРГНИП, ИНН индивидуального предпринимателя)\nлица, фамилии, имя, отчества, адреса места жительства, ОРГНИП, ИНН индивидуального предпринимателя)\nподтверждающего полномочия, с указанием наименования, ОГРН, ИНН, места нахождения юридического\nлица, фамилии, имя, отчества, адреса места жительства, ОРГНИП, ИНН индивидуального предпринимателя)\nподтверждающего полномочия, с указанием наименования, ОГРН, ИНН, места нахождения юридического\nлица, фамилии, имя, отчества, адреса места жительства, ОРГНИП, ИНН индивидуального предпринимателя)\n"]
["Представитель   лица, осуществляющего строительство:"]
[]
["(должность, фамилия, инициалы, реквизиты распорядительного документа, подтверющего полномочия)"]
["Представитель лица, осуществляющего строительство, по вопросам строительного контроля (специалист "]
["по организации строительства)"]
["(должность, фамилия, инициалы, идентицикационный номер в национальном реестре специалистов  в области строительства, "]
[]
["реквизиты распорядительного документа, подтверждающего полномочия)"]
[]
[]
["Представитель   лица, осуществляющего подготовку проектной документации:"]
[]
["(должность, фамилия, инициалы, реквизиты распорядительного документа, подтверждающего "]
[]
["полномочия, с указанием наименования, ОГРН, ИНН, места нахождения юридического лица, фамилии, "]
[]
["имени, отчества, адреса места жительства, ОРГНИП, ИНН индивидуального предпринимателя, "]
[]
["наименования, ОГРН, ИНН саморегулируемой организации,  членом которой является "]
["указанное юридическое лицо, индивидуальные предприниматель)"]
["Представитель лица,  выполнившего работы, подлежащие освидетельствованию"]
[]
["(должность, фамилия, инициалы, реквизиты распорядительного документа, подтверждающего полномочия, с указанием наименования"]
[]
["ОГРН, ИНН, места нахождения юридического лица, фамилии, имени, отчества, адреса места жительства,  ОРГНИП, ИНН инд. предпр.)"]
["а так же иные представители лиц, участвующие в освидетельствовании:"]
[]
["(должность с указанием наименования организации, фамилия, инициалы, реквизиты распорядительногоя)"]
[" документа, подтверждающего полномочия)"]
["произвели осмотр работ выполненных"]
[null,null,null,null,null,null,null,null,null,null,null,null,null,"(наименование лица, выполнившего работы, подлежащие освидетельствованию)"]
["и составили настоящий акт о нижеследующем:"]
["1.","К освидетельствованию предъявлены следующие работы:"]
[]
[]
[]
[]
["(наименование  скрытых работ)"]
["2.","Работы выполнены по проектной документации:"]
[" (номер, другие реквизиты чертежа, наименование проектной и/или рабочей документации, сведения о лицах, "]
[" осуществляющих подготовку раздела проектной и/или рабочей документации)"]
["3.","При выполнении работ применены:"]
["(наименование строительных материалов (изделий),"]
[]
[]
[" ревизиты сертификатов и/или других документов, подтверждающих их качество и безопасность)"]
["4.","Предъявлены документы, подтверждающие соответствие работ предъявляемым к ним требованиям:"]
[]
[]
[]
[]
[]
[]
[]
["(исполнительные схемы и чертежи, результаты экспертиз, обследований, лабораторных и иных испытаний выполненных работ,"]
["проведенных в процессе строительного контроля)"]
["5.","Даты:",null,null,"начала работ",null,null,null,null,null,"\"",null,null,"\"",null,null,null,null,null,null,null,null,null,null,null,"г."]
[null,null,null,null,"окончания работ",null,null,null,null,null,"\"",null,null,"\"",null,null,null,null,null,null,null,null,null,null,null,"г."]
["6.","Работы выполнены в соответствии с"]
[]
["( наименованиеи структурные единицы технических регламентов,"]
[]
["иных нормативных правовых актов, разделы проектной и/или рабочей документации)"]
["7.","Разрешается производство последующих работ по"]
[]
[" ( наименование работ, конструкций, участков сетей инженерно-технического обеспечения)"]
["Дополнительные сведения:"]
["Акт составлен в",null,null,null,null,null,null,null,null,"экземплярах."]
["Приложения:"]
[]
["1."]
["2."]
["3."]
["4."]
["5."]
["6."]
["7."]
["8."]
["9."]
["10."]
["11."]
["12."]
["13."]
["14."]
["15."]
["16."]
["Представитель застройщика (технического заказчика, эксплуатирующей организации или регионального оператора) по вопросам строительного контроля"]
[]
[null,null,null,null,null,null,null,null,null,null,null,null,null,null,null,null,null,null,"(фамилия, инициалы, подпись)"]
["Предствавитель лица, осуществляющего строительство"]
[null,null,null,null,null,null,null,null,null,null,null,null,null,null,null,null,null,null,"(фамилия, инициалы, подпись)"]
["Представитель лица, осуществляющего строительство, по вопросам строительного контроля (специалист по организации строительства)"]
[]
[null,null,null,null,null,null,null,null,null,null,null,null,null,null,null,null,null,null,"(фамилия, инициалы, подпись)"]
["Представитель лица, осуществляющего подготовку проектной документации"]
[null,null,null,null,null,null,null,null,null,null,null,null,null,null,null,null,null,null,"(фамилия, инициалы, подпись)"]
["Представитель лица, выполнившего работы, подлежащие освидетельствованию"]
[null,null,null,null,null,null,null,null,null,null,null,null,null,null,null,null,null,null,"(фамилия, инициалы, подпись)"]

{"sheet":"Акт № 10 в","index":3,"n_rows":132,"n_cols":36,"rows_kept":132,"cut":false,"hidden":false,"merged":[[130,0,131,17],[130,18,130,35],[131,18,131,35],[125,0,127,17],[126,18,126,35],[127,18,127,35],[128,0,129,17],[128,18,128,35],[129,18,129,35],[120,0,122,17],[121,18,121,35],[122,18,122,35],[123,0,123,17],[123,18,123,35],[124,18,124,35],[114,0,114,1],[115,0,115,1],[116,0,116,1],[117,0,117,1],[118,0,118,1],[119,0,119,1],[108,0,108,1],[109,0,109,1],[110,0,110,1],[111,0,111,1],[112,0,112,1],[113,0,113,1],[102,0,102,4],[103,2,103,35],[104,0,104,1],[105,0,105,1],[106,0,106,1],[107,0,107,1],[98,0,98,35],[99,0,99,35],[100,0,100,8],[100,9,100,35],[101,0,101,5],[101,6,101,8],[93,0,93,35],[94,0,94,35],[95,0,95,35],[96,0,96,35],[97,1,97,17],[97,18,97,35],[91,4,91,9],[91,11,91,12],[91,14,91,21],[91,22,91,24],[92,1,92,13],[92,14,92,35],[85,0,85,35],[86,0,86,35],[87,0,87,35],[88,0,88,35],[89,0,89,35],[90,1,90,3],[90,4,90,9],[90,11,90,12],[90,14,90,21],[90,22,90,24],[79,0,79,35],[80,1,80,35],[81,0,81,35],[82,0,82,35],[83,0,83,35],[84,0,84,35],[74,0,74,35],[75,1,75,12],[75,13,75,35],[76,0,76,35],[77,0,77,35],[78,0,78,35],[69,0,69,35],[70,0,70,35],[71,0,71,35],[72,1,72,16],[72,17,72,35],[73,0,73,35],[64,13,64,35],[65,0,65,16],[66,1,66,20],[66,21,66,35],[67,0,67,35],[68,0,68,35],[59,0,59,23],[59,24,59,35],[60,0,60,35],[61,0,61,35],[62,0,62,35],[63,0,63,12],[63,13,63,35],[53,0,53,35],[54,0,54,28],[55,0,55,35],[56,0,56,35],[57,0,57,35],[58,0,58,35],[47,0,47,35],[48,0,48,35],[49,0,49,35],[50,0,50,35],[51,0,51,35],[52,0,52,35],[42,0,42,35],[43,0,43,35],[44,0,44,25],[44,26,44,35],[45,0,45,35],[46,0,46,35],[37,0,37,35],[38,0,38,10],[38,11,38,35],[39,0,39,35],[40,0,40,35],[41,0,41,35],[32,0,32,35],[33,0,33,35],[34,0,34,18],[34,19,34,35],[35,0,35,35],[36,0,36,35],[26,0,26,35],[27,0,27,21],[28,0,28,35],[29,0,29,35],[30,0,30,35],[31,0,31,35],[22,0,22,35],[23,0,23,35],[24,0,24,35],[25,1,25,2],[25,3,25,20],[25,22,25,23],[25,25,25,30],[25,32,25,34],[17,0,17,35],[18,0,18,21],[18,22,18,35],[19,0,19,35],[20,0,20,35],[21,0,21,35],[11,0,11,35],[12,0,12,35],[13,0,13,35],[14,0,14,35],[15,0,15,35],[16,0,16,35],[5,0,5,35],[6,0,6,35],[7,0,7,35],[8,0,8,35],[9,0,9,35],[10,0,10,13],[10,14,10,35],[0,0,0,13],[0,14,0,35],[1,0,1,35],[2,0,2,35],[3,0,3,35],[4,0,4,35]]}
["Объект капитального строительства:",null,null,null,null,null,null,null,null,null,null,null,null,null,"Реконструкция автомобильной дороги \"\""]
[]
["(наименование проектной документации, почтовый или строительный адрес объекта капитального строительства)"]
["Застройщик (технический заказчик, эксплуатирующая организация или региональный оператор)"]
["Областное казенное учреждение \" \" ОГРН 00000000000 внесена"]
["(фамилия, имя, отчество, адрес места жительства, ОРГНИП, ИНН индивидуального предпринимателя, наименование, ОГРН, ИНН,"]
["запись о создании юридического лица от 00.00.2017 г, ИНН 0000000000000000, 000000000000, г.,"]
["место нахождения юридического лица, телефон/факс, наименование, ОГРН, ИНН саморегулируемой организации, членом"]
["ул. , тел. (0000) 00-00-00"]
["которой является – для индивидуальных предпринимателей и юридических лиц)  "]
["Лицо, осуществляющее строительство:",null,null,null,null,null,null,null,null,null,null,null,null,null,"Общество с ограниченной ответственностью \"\""]
["ОГРН 0000000000000; ИНН 00000000000000000000; 000000 г. , ул. М.Горького,д., помещение 000,"]
["(фамилия, имя, отчество, адрес места жительства, ОРГНИП, ИНН индивидуального предпринимателя, наименование, ОГРН, ИНН, место"]
["тел. +7 (900) 000-00-00, свидетельство №0000.00-2011-000000000-С-000, выдано по решению НП"]
[" нахождения юридического лица, телефон/факс, наименование, ОГРН, ИНН саморегулируемой организации, членом которой является)"]
["саморегулируемой организации в строительстве \"\", протокол №00/0000 от 00.00.0000 г., ОГРН"]
["00000000000000000 ИНН 00000000000000000"]
[]
["Лицо, осуществляющее подготовку проектной документации:",null,null,null,null,null,null,null,null,null,null,null,null,null,null,null,null,null,null,null,null,null,"Общество с ограниченной"]
["ответственностью \"0-0\" Свидетельство №0000.00-00000-00000000000000000 от 00.00.0000., ИНН"]
["(фамилия, имя, отчество, адрес места жительства, ОРГНИП, ИНН индивидуального предпринимателя, наименование, ОГРН, ИНН, место"]
["00000000000 ОГРН 0000000000000000000, 000000, область , город , улица Ленина, д"]
["нахождения юридического лица, телефон/факс, наименование, ОГРН, ИНН саморегулируемой организации, членом которой является)"]
["Акт"]
["освидетельствования скрытых работ"]
["№","10 в",null,null,null,null,null,null,null,null,null,null,null,null,null,null,null,null,null,null,null,"\"",30,null,"\"","Июль",null,null,null,null,null,null,2017,null,null,"г."]
[" Представитель   застройщика (технического заказчика, эксплуатирующей организации или "]
["регионального оператора) по вопросам строительного контроля:"]
["Главный инженер проекта ООО \"\" - Дмитриев О.В.,"]
["(должность, фамилия, инициалы, идентификационный номер в национальном реестре специалистов в области строительства  "]
[]
["реквизиты распорядительного документа, подтверждающего полномочия, с указанием наименования, ОГРН, ИНН, места нахождения \n\n"]
[]
["юридического лица, фамилии, имени, отчества, адреса места жительства, ОРГНИП, ИНН индивидуального предпринимателя)\nлица, фамилии, имя, отчества, адреса места жительства, ОРГНИП, ИНН индивидуального предпринимателя)\nподтверждающего полномочия, с указанием наименования, ОГРН, ИНН, места нахождения юридического\nлица, фамилии, имя, отчества, адреса места жительства, ОРГНИП, ИНН индивидуального предпринимателя)\nподтверждающего полномочия, с указанием наименования, ОГРН, ИНН, места нахождения юридического\nлица, фамилии, имя, отчества, адреса места жительства, ОРГНИП, ИНН индивидуального предпринимателя)\n"]
["Представитель   лица, осуществляющего строительство:",null,null,null,null,null,null,null,null,null,null,null,null,null,null,null,null,null,null,"Начальник участка - Сидоров А.М.,"]
[]
["(должность, фамилия, инициалы, реквизиты распорядительного документа, подтверющего полномочия)"]
["Представитель лица, осуществляющего строительство, по вопросам строительного контроля (специалист "]
["по организации строительства)",null,null,null,null,null,null,null,null,null,null,"Инженер ПТО Павлова Е.Д. -"]
["(должность, фамилия, инициалы, идентицикационный номер в национальном реестре специалистов  в области строительства, "]
[]
["реквизиты распорядительного документа, подтверждающего полномочия)"]
[]
[]
["Представитель   лица, осуществляющего подготовку проектной документации:",null,null,null,null,null,null,null,null,null,null,null,null,null,null,null,null,null,null,null,null,null,null,null,null,null,"Главный инженер"]
["проекта ООО \"\" - Дмитриев О.В."]
["(должность, фамилия, инициалы, реквизиты распорядительного документа, подтверждающего "]
[]
["полномочия, с указанием наименования, ОГРН, ИНН, места нахождения юридического лица, фамилии, "]
[]
["имени, отчества, адреса места жительства, ОРГНИП, ИНН индивидуального предпринимателя, "]
[]
["наименования, ОГРН, ИНН саморегулируемой организации,  членом которой является "]
["указанное юридическое лицо, индивидуальные предприниматель)"]
["Представитель лица,  выполнившего работы, подлежащие освидетельствованию"]
["Начальник участка - Сидоров А.М.,"]
["(должность, фамилия, инициалы, реквизиты распорядительного документа, подтверждающего полномочия, с указанием наименования"]
[]
["ОГРН, ИНН, места нахождения юридического лица, фамилии, имени, отчества, адреса места жительства,  ОРГНИП, ИНН инд. предпр.)"]
["а так же иные представители лиц, участвующие в освидетельствовании:"]
[]
["(должность с указанием наименования организации, фамилия, инициалы, реквизиты распорядительногоя)"]
[" документа, подтверждающего полномочия)"]
["произвели осмотр работ выполненных",null,null,null,null,null,null,null,null,null,null,null,null,"ООО \"\""]
[null,null,null,null,null,null,null,null,null,null,null,null,null,"(наименование лица, выполнившего работы, подлежащие освидетельствованию)"]
["и составили настоящий акт о нижеследующем:"]
["1.","К освидетельствованию предъявлены следующие работы:",null,null,null,null,null,null,null,null,null,null,null,null,null,null,null,null,null,null,null,"Временая дорога ПК00+20-2+40,"]
["ПК4+40-20+30; Ремонт лакокрасочного покрытия наружных поверхностей крышки"]
["турбины 18Г на первый слой."]
[]
[]
["(наименование  скрытых работ)"]
["2.","Работы выполнены по проектной документации:",null,null,null,null,null,null,null,null,null,null,null,null,null,null,null,"3-ПРД-ТКР2.1"]
[" (номер, другие реквизиты чертежа, наименование проектной и/или рабочей документации, сведения о лицах, "]
[" осуществляющих подготовку раздела проектной и/или рабочей документации)"]
["3.","При выполнении работ применены:",null,null,null,null,null,null,null,null,null,null,null,"Нефрас, ветошь, отвердитель, растворитель Р-4,"]
["(наименование строительных материалов (изделий),"]
["шпатлевка ЭП 0010."]
[]
[" ревизиты сертификатов и/или других документов, подтверждающих их качество и безопасность)"]
["4.","Предъявлены документы, подтверждающие соответствие работ предъявляемым к ним требованиям:"]
["Исполнительная схема; ведомость объемов работ; Журнал плотноси земляного полотна; ведомость"]
["промеров высотных отметок; ведомость приемки земляного полотна;Журнал физико-механических"]
["свойств грунтов; акт пробного уплотнения"]
[]
[]
[]
[]
["(исполнительные схемы и чертежи, результаты экспертиз, обследований, лабораторных и иных испытаний выполненных работ,"]
["проведенных в процессе строительного контроля)"]
["5.","Даты:",null,null,"начала работ",null,null,null,null,null,"\"",20,null,"\"","Май",null,null,null,null,null,null,null,2016,null,null,"г."]
[null,null,null,null,"окончания работ",null,null,null,null,null,"\"",24,null,"\"","Июнь",null,null,null,null,null,null,null,2016,null,null,"г."]
["6.","Работы выполнены в соответствии с",null,null,null,null,null,null,null,null,null,null,null,null,"СП 34.13330.2012 Автомобильные дороги."]
["Актуализированная редакция СНиП 2.02.02-85*, 3-ПРД-ТКР2.1"]
["( наименованиеи структурные единицы технических регламентов,"]
[]
["иных нормативных правовых актов, разделы проектной и/или рабочей документации)"]
["7.","Разрешается производство последующих работ по",null,null,null,null,null,null,null,null,null,null,null,null,null,null,null,null,"Ремонт лакокрасочного покрытия наружных"]
["поверхностей крышки турбины 18Г на второй слой."]
[" ( наименование работ, конструкций, участков сетей инженерно-технического обеспечения)"]
["Дополнительные сведения:",null,null,null,null,null,null,null,null,"нет"]
["Акт составлен в",null,null,null,null,null,3,null,null,"экземплярах."]
["Приложения:"]
[null,null,"Исполнительная схема; ведомость объемов работ; Журнал плотноси земляного полотна; ведомость промеров высотных отметок; ведомость приемки земляного полотна;Журнал физико-механических свойств грунтов; акт пробного уплотнения; 0; 0; 0; 0; 0; 0; 0; 0; 0; 0; 0; 0; 0; 0; 0; 0"]
["1.",null,"Исполнительная схема"]
["2.",null," ведомость объемов работ"]
["3.",null," Журнал плотноси земляного полотна"]
["4.",null," ведомость промеров высотных отметок"]
["5.",null," ведомость приемки земляного полотна"]
["6.",null,"Журнал физико-механических свойств грунтов"]
["7.",null," акт пробного уплотнения"]
["8.",null,0]
["9.",null,0]
["10.",null,0]
["11.",null,0]
["12.",null,0]
["13.",null,0]
["14.",null,0]
["15.",null,0]
["16.",null,0]
["Представитель застройщика (технического заказчика, эксплуатирующей организации или регионального оператора) по вопросам строительного контроля"]
[null,null,null,null,null,null,null,null,null,null,null,null,null,null,null,null,null,null,"Дмитриев О.В."]
[null,null,null,null,null,null,null,null,null,null,null,null,null,null,null,null,null,null,"(фамилия, инициалы, подпись)"]
["Предствавитель лица, осуществляющего строительство",null,null,null,null,null,null,null,null,null,null,null,null,null,null,null,null,null,"Сидоров А.М."]
[null,null,null,null,null,null,null,null,null,null,null,null,null,null,null,null,null,null,"(фамилия, инициалы, подпись)"]
["Представитель лица, осуществляющего строительство, по вопросам строительного контроля (специалист по организации строительства)"]
[null,null,null,null,null,null,null,null,null,null,null,null,null,null,null,null,null,null,"Павлова Е.Д."]
[null,null,null,null,null,null,null,null,null,null,null,null,null,null,null,null,null,null,"(фамилия, инициалы, подпись)"]
["Представитель лица, осуществляющего подготовку проектной документации",null,null,null,null,null,null,null,null,null,null,null,null,null,null,null,null,null,"Дмитриев О.В."]
[null,null,null,null,null,null,null,null,null,null,null,null,null,null,null,null,null,null,"(фамилия, инициалы, подпись)"]
["Представитель лица, выполнившего работы, подлежащие освидетельствованию",null,null,null,null,null,null,null,null,null,null,null,null,null,null,null,null,null,"Сидоров А.М."]
[null,null,null,null,null,null,null,null,null,null,null,null,null,null,null,null,null,null,"(фамилия, инициалы, подпись)"]

{"sheet":"Акт № 5","index":4,"n_rows":132,"n_cols":36,"rows_kept":132,"cut":false,"hidden":false,"merged":[[130,0,131,17],[130,18,130,35],[131,18,131,35],[125,0,127,17],[126,18,126,35],[127,18,127,35],[128,0,129,17],[128,18,128,35],[129,18,129,35],[120,0,122,17],[121,18,121,35],[122,18,122,35],[123,0,123,17],[123,18,123,35],[124,18,124,35],[114,0,114,1],[115,0,115,1],[116,0,116,1],[117,0,117,1],[118,0,118,1],[119,0,119,1],[108,0,108,1],[109,0,109,1],[110,0,110,1],[111,0,111,1],[112,0,112,1],[113,0,113,1],[102,0,102,4],[103,2,103,35],[104,0,104,1],[105,0,105,1],[106,0,106,1],[107,0,107,1],[98,0,98,35],[99,0,99,35],[100,0,100,8],[100,9,100,35],[101,0,101,5],[101,6,101,8],[93,0,93,35],[94,0,94,35],[95,0,95,35],[96,0,96,35],[97,1,97,17],[97,18,97,35],[91,4,91,9],[91,11,91,12],[91,14,91,21],[91,22,91,24],[92,1,92,13],[92,14,92,35],[85,0,85,35],[86,0,86,35],[87,0,87,35],[88,0,88,35],[89,0,89,35],[90,1,90,3],[90,4,90,9],[90,11,90,12],[90,14,90,21],[90,22,90,24],[79,0,79,35],[80,1,80,35],[81,0,81,35],[82,0,82,35],[83,0,83,35],[84,0,84,35],[74,0,74,35],[75,1,75,12],[75,13,75,35],[76,0,76,35],[77,0,77,35],[78,0,78,35],[69,0,69,35],[70,0,70,35],[71,0,71,35],[72,1,72,16],[72,17,72,35],[73,0,73,35],[64,13,64,35],[65,0,65,16],[66,1,66,20],[66,21,66,35],[67,0,67,35],[68,0,68,35],[59,0,59,23],[59,24,59,35],[60,0,60,35],[61,0,61,35],[62,0,62,35],[63,0,63,12],[63,13,63,35],[53,0,53,35],[54,0,54,28],[55,0,55,35],[56,0,56,35],[57,0,57,35],[58,0,58,35],[47,0,47,35],[48,0,48,35],[49,0,49,35],[50,0,50,35],[51,0,51,35],[52,0,52,35],[42,0,42,35],[43,0,43,35],[44,0,44,25],[44,26,44,35],[45,0,45,35],[46,0,46,35],[37,0,37,35],[38,0,38,10],[38,11,38,35],[39,0,39,35],[40,0,40,35],[41,0,41,35],[32,0,32,35],[33,0,33,35],[34,0,34,18],[34,19,34,35],[35,0,35,35],[36,0,36,35],[26,0,26,35],[27,0,27,21],[28,0,28,35],[29,0,29,35],[30,0,30,35],[31,0,31,35],[22,0,22,35],[23,0,23,35],[24,0,24,35],[25,1,25,2],[25,3,25,20],[25,22,25,23],[25,25,25,30],[25,32,25,34],[17,0,17,35],[18,0,18,21],[18,22,18,35],[19,0,19,35],[20,0,20,35],[21,0,21,35],[11,0,11,35],[12,0,12,35],[13,0,13,35],[14,0,14,35],[15,0,15,35],[16,0,16,35],[5,0,5,35],[6,0,6,35],[7,0,7,35],[8,0,8,35],[9,0,9,35],[10,0,10,13],[10,14,10,35],[0,0,0,13],[0,14,0,35],[1,0,1,35],[2,0,2,35],[3,0,3,35],[4,0,4,35]]}
["Объект капитального строительства:",null,null,null,null,null,null,null,null,null,null,null,null,null,"Реконструкция автомобильной дороги \"\""]
[]
["(наименование проектной документации, почтовый или строительный адрес объекта капитального строительства)"]
["Застройщик (технический заказчик, эксплуатирующая организация или региональный оператор)"]
["Областное казенное учреждение \" \" ОГРН 00000000000 внесена"]
["(фамилия, имя, отчество, адрес места жительства, ОРГНИП, ИНН индивидуального предпринимателя, наименование, ОГРН, ИНН,"]
["запись о создании юридического лица от 00.00.2017 г, ИНН 0000000000000000, 000000000000, г.,"]
["место нахождения юридического лица, телефон/факс, наименование, ОГРН, ИНН саморегулируемой организации, членом"]
["ул. , тел. (0000) 00-00-00"]
["которой является – для индивидуальных предпринимателей и юридических лиц)  "]
["Лицо, осуществляющее строительство:",null,null,null,null,null,null,null,null,null,null,null,null,null,"Общество с ограниченной ответственностью \"\""]
["ОГРН 0000000000000; ИНН 00000000000000000000; 000000 г. , ул. М.Горького,д., помещение 000,"]
["(фамилия, имя, отчество, адрес места жительства, ОРГНИП, ИНН индивидуального предпринимателя, наименование, ОГРН, ИНН, место"]
["тел. +7 (900) 000-00-00, свидетельство №0000.00-2011-000000000-С-000, выдано по решению НП"]
[" нахождения юридического лица, телефон/факс, наименование, ОГРН, ИНН саморегулируемой организации, членом которой является)"]
["саморегулируемой организации в строительстве \"\", протокол №00/0000 от 00.00.0000 г., ОГРН"]
["00000000000000000 ИНН 00000000000000000"]
[]
["Лицо, осуществляющее подготовку проектной документации:",null,null,null,null,null,null,null,null,null,null,null,null,null,null,null,null,null,null,null,null,null,"Общество с ограниченной"]
["ответственностью \"0-0\" Свидетельство №0000.00-00000-00000000000000000 от 00.00.0000., ИНН"]
["(фамилия, имя, отчество, адрес места жительства, ОРГНИП, ИНН индивидуального предпринимателя, наименование, ОГРН, ИНН, место"]
["00000000000 ОГРН 0000000000000000000, 000000, область , город , улица Ленина, д"]
["нахождения юридического лица, телефон/факс, наименование, ОГРН, ИНН саморегулируемой организации, членом которой является)"]
["Акт"]
["освидетельствования скрытых работ"]
["№","5",null,null,null,null,null,null,null,null,null,null,null,null,null,null,null,null,null,null,null,"\"",29,null,"\"","Июнь",null,null,null,null,null,null,2016,null,null,"г."]
[" Представитель   застройщика (технического заказчика, эксплуатирующей организации или "]
["регионального оператора) по вопросам строительного контроля:"]
["Главный инженер проекта ООО \"\" - Дмитриев О.В.,"]
["(должность, фамилия, инициалы, идентификационный номер в национальном реестре специалистов в области строительства  "]
[]
["реквизиты распорядительного документа, подтверждающего полномочия, с указанием наименования, ОГРН, ИНН, места нахождения \n\n"]
[]
["юридического лица, фамилии, имени, отчества, адреса места жительства, ОРГНИП, ИНН индивидуального предпринимателя)\nлица, фамилии, имя, отчества, адреса места жительства, ОРГНИП, ИНН индивидуального предпринимателя)\nподтверждающего полномочия, с указанием наименования, ОГРН, ИНН, места нахождения юридического\nлица, фамилии, имя, отчества, адреса места жительства, ОРГНИП, ИНН индивидуального предпринимателя)\nподтверждающего полномочия, с указанием наименования, ОГРН, ИНН, места нахождения юридического\nлица, фамилии, имя, отчества, адреса места жительства, ОРГНИП, ИНН индивидуального предпринимателя)\n"]
["Представитель   лица, осуществляющего строительство:",null,null,null,null,null,null,null,null,null,null,null,null,null,null,null,null,null,null,"Начальник участка - Сидоров А.М.,"]
[]
["(должность, фамилия, инициалы, реквизиты распорядительного документа, подтверющего полномочия)"]
["Представитель лица, осуществляющего строительство, по вопросам строительного контроля (специалист "]
["по организации строительства)",null,null,null,null,null,null,null,null,null,null,"Инженер ПТО Павлова Е.Д. -"]
["(должность, фамилия, инициалы, идентицикационный номер в национальном реестре специалистов  в области строительства, "]
[]
["реквизиты распорядительного документа, подтверждающего полномочия)"]
[]
[]
["Представитель   лица, осуществляющего подготовку проектной документации:",null,null,null,null,null,null,null,null,null,null,null,null,null,null,null,null,null,null,null,null,null,null,null,null,null,"Главный инженер"]
["проекта ООО \"\" - Дмитриев О.В."]
["(должность, фамилия, инициалы, реквизиты распорядительного документа, подтверждающего "]
[]
["полномочия, с указанием наименования, ОГРН, ИНН, места нахождения юридического лица, фамилии, "]
[]
["имени, отчества, адреса места жительства, ОРГНИП, ИНН индивидуального предпринимателя, "]
[]
["наименования, ОГРН, ИНН саморегулируемой организации,  членом которой является "]
["указанное юридическое лицо, индивидуальные предприниматель)"]
["Представитель лица,  выполнившего работы, подлежащие освидетельствованию"]
["Начальник участка - Сидоров А.М.,"]
["(должность, фамилия, инициалы, реквизиты распорядительного документа, подтверждающего полномочия, с указанием наименования"]
[]
["ОГРН, ИНН, места нахождения юридического лица, фамилии, имени, отчества, адреса места жительства,  ОРГНИП, ИНН инд. предпр.)"]
["а так же иные представители лиц, участвующие в освидетельствовании:"]
[]
["(должность с указанием наименования организации, фамилия, инициалы, реквизиты распорядительногоя)"]
[" документа, подтверждающего полномочия)"]
["произвели осмотр работ выполненных",null,null,null,null,null,null,null,null,null,null,null,null,"ООО \"\""]
[null,null,null,null,null,null,null,null,null,null,null,null,null,"(наименование лица, выполнившего работы, подлежащие освидетельствованию)"]
["и составили настоящий акт о нижеследующем:"]
["1.","К освидетельствованию предъявлены следующие работы:",null,null,null,null,null,null,null,null,null,null,null,null,null,null,null,null,null,null,null,"Основная дорога"]
["ПК0+00-ПК20+30; Ремонт лакокрасочного покрытия внутренних поверхностей крышки"]
["турбины 18Г на первый слой."]
[]
[]
["(наименование  скрытых работ)"]
["2.","Работы выполнены по проектной документации:",null,null,null,null,null,null,null,null,null,null,null,null,null,null,null,"3-ПРД-ТКР2.1"]
[" (номер, другие реквизиты чертежа, наименование проектной и/или рабочей документации, сведения о лицах, "]
[" осуществляющих подготовку раздела проектной и/или рабочей документации)"]
["3.","При выполнении работ применены:",null,null,null,null,null,null,null,null,null,null,null,"Нефрас, ветошь, отвердитель, растворитель Р-4,"]
["(наименование строительных материалов (изделий),"]
["шпатлевка ЭП 0010."]
[]
[" ревизиты сертификатов и/или других документов, подтверждающих их качество и безопасность)"]
["4.","Предъявлены документы, подтверждающие соответствие работ предъявляемым к ним требованиям:"]
["Исполнительная схема; ведомость объемов работ; Паспорт на B25 №25, 26, 28 от 30.01.2019, №46"]
["от 12.02.2019, №51, 52, 53, 55, 56, 62, 64 от 20.02.2019., №00 от 00.00.2020г. №25, 26, 28 от"]
["30.01.2019, №46 от 12.02.2019, №51, 52, 53, 55, 56, 62, 64 от 20.02.2019., №00 от 00.00.2020г."]
[";Журнал плотноси земляного полотна; ведомость промеров высотных отметок; ведомость приемки"]
["земляного полотна;Журнал физико-механических свойств грунтов; акт пробного уплотнения"]
[]
[]
["(исполнительные схемы и чертежи, результаты экспертиз, обследований, лабораторных и иных испытаний выполненных работ,"]
["проведенных в процессе строительного контроля)"]
["5.","Даты:",null,null,"начала работ",null,null,null,null,null,"\"",25,null,"\"","Июнь",null,null,null,null,null,null,null,2016,null,null,"г."]
[null,null,null,null,"окончания работ",null,null,null,null,null,"\"",29,null,"\"","Июнь",null,null,null,null,null,null,null,2016,null,null,"г."]
["6.","Работы выполнены в соответствии с",null,null,null,null,null,null,null,null,null,null,null,null,"СП 34.13330.2012 Автомобильные дороги."]
["Актуализированная редакция СНиП 2.02.02-85*, 3-ПРД-ТКР2.1"]
["( наименованиеи структурные единицы технических регламентов,"]
[]
["иных нормативных правовых актов, разделы проектной и/или рабочей документации)"]
["7.","Разрешается производство последующих работ по",null,null,null,null,null,null,null,null,null,null,null,null,null,null,null,null,"Ремонт лакокрасочного покрытия"]
["внутренних поверхностей крышки турбины 18Г на второй слой."]
[" ( наименование работ, конструкций, участков сетей инженерно-технического обеспечения)"]
["Дополнительные сведения:",null,null,null,null,null,null,null,null,"нет"]
["Акт составлен в",null,null,null,null,null,3,null,null,"экземплярах."]
["Приложения:"]
[null,null,"Исполнительная схема; ведомость объемов работ; Паспорт на B25 №25, 26, 28 от 30.01.2019, №46 от 12.02.2019, №51, 52, 53, 55, 56, 62, 64 от 20.02.2019., №00 от 00.00.2020г. №25, 26, 28 от 30.01.2019, №46 от 12.02.2019, №51, 52, 53, 55, 56, 62, 64 от 20.02.2019., №00 от 00.00.2020г. ;Журнал плотноси земляного полотна; ведомость промеров высотных отметок; ведомость приемки земляного полотна;Журнал физико-механических свойств грунтов; акт пробного уплотнения; 0; 0; 0; 0; 0; 0; 0; 0; 0; 0; 0; 0; 0; 0; 0; 0"]
["1.",null,"Исполнительная схема"]
["2.",null," ведомость объемов работ"]
["3.",null," Паспорт на B25 №25, 26, 28 от 30.01.2019, №46 от 12.02.2019, №51, 52, 53, 55, 56, 62, 64 от 20.02.2019., №00 от 00.00.2020г. №25, 26, 28 от 30.01.2019, №46 от 12.02.2019, №51, 52, 53, 55, 56, 62, 64 от 20.02.2019., №00 от 00.00.2020г. "]
["4.",null,"Журнал плотноси земляного полотна"]
["5.",null," ведомость промеров высотных отметок"]
["6.",null," ведомость приемки земляного полотна"]
["7.",null,"Журнал физико-механических свойств грунтов"]
["8.",null," акт пробного уплотнения"]
["9.",null,0]
["10.",null,0]
["11.",null,0]
["12.",null,0]
["13.",null,0]
["14.",null,0]
["15.",null,0]
["16.",null,0]
["Представитель застройщика (технического заказчика, эксплуатирующей организации или регионального оператора) по вопросам строительного контроля"]
[null,null,null,null,null,null,null,null,null,null,null,null,null,null,null,null,null,null,"Дмитриев О.В."]
[null,null,null,null,null,null,null,null,null,null,null,null,null,null,null,null,null,null,"(фамилия, инициалы, подпись)"]
["Предствавитель лица, осуществляющего строительство",null,null,null,null,null,null,null,null,null,null,null,null,null,null,null,null,null,"Сидоров А.М."]
[null,null,null,null,null,null,null,null,null,null,null,null,null,null,null,null,null,null,"(фамилия, инициалы, подпись)"]
["Представитель лица, осуществляющего строительство, по вопросам строительного контроля (специалист по организации строительства)"]
[null,null,null,null,null,null,null,null,null,null,null,null,null,null,null,null,null,null,"Павлова Е.Д."]
[null,null,null,null,null,null,null,null,null,null,null,null,null,null,null,null,null,null,"(фамилия, инициалы, подпись)"]
["Представитель лица, осуществляющего подготовку проектной документации",null,null,null,null,null,null,null,null,null,null,null,null,null,null,null,null,null,"Дмитриев О.В."]
[null,null,null,null,null,null,null,null,null,null,null,null,null,null,null,null,null,null,"(фамилия, инициалы, подпись)"]
["Представитель лица, выполнившего работы, подлежащие освидетельствованию",null,null,null,null,null,null,null,null,null,null,null,null,null,null,null,null,null,"Сидоров А.М."]
[null,null,null,null,null,null,null,null,null,null,null,null,null,null,null,null,null,null,"(фамилия, инициалы, подпись)"]